Cogmind - Beta 14 @@@ ROGUE MODE // 2024.10.20 @ 15:27:09 Player: NextToZero Result: Destroyed by G-34 Mercenary with Small Laser Performance ------------- Evolutions (1) 500 Regions Visited (2) 400 Robots Destroyed (18) 90 Value Destroyed (469) 469 Prototype IDs (0) 0 Alien Tech Used (0) 0 Bonus (0) 0 TOTAL SCORE: 1459 Bonus ------- None Cogmind --------- Core Integrity 0/400 Matter 300/300 Energy 350/350 System Corruption 1% Temperature Cool (6) Movement Core (100) Ox1 Location -9/Materials Parts ------- > --- POWER (1) -------- (None) > --- PROPULSION (2) --- (None) > --- UTILITY (4) ------ High-capacity Battery Signal Interpreter > --- WEAPON (2) ------- (None) > --- INVENTORY (5) ---- Ion Engine Cooling System Light Armor Plating Peak State ------------ > --- POWER ------------ Light Nuclear Core > --- PROPULSION ------- Light Treads Light Treads > --- UTILITY ---------- Small Storage Unit Sensor Array Signal Interpreter Light Armor Plating > --- WEAPON ----------- EM Pulse Gun Shotgun > --- INVENTORY -------- Ion Engine Light Treads High-capacity Battery Grenade Launcher Grenade Launcher Datajack [Rating: 12] Favorites ----------- Power Light Nuclear Core Engine Ion Engine Power Core Light Nuclear Core Propulsion Light Treads Treads Light Treads Utility Small Storage Unit Device Sensor Array Storage Small Storage Unit Processor Signal Interpreter Protection Light Armor Plating Weapon EM Pulse Gun Energy Gun EM Pulse Gun Energy Cannon Beam Cannon Ballistic Gun Assault Rifle Launcher Grenade Launcher Special Melee Weapon Datajack Build | -11 -10 -9 ------- Run | Yrd Mat Mat Slots Evolved 2 | . . 2 Power . | . . . Propulsion . | . . . Utility 2 | . . 2 Weapon . | . . . Parts Attached 23 | 7 5 11 Power 2 | 1 1 . Engine 1 | 1 . . Core 1 | . 1 . Reactor . | . . . Propulsion 4 | 2 1 1 Treads 4 | 2 1 1 Leg . | . . . Wheel . | . . . Hover . | . . . Flight . | . . . Utility 7 | 2 1 4 Device 3 | 1 . 2 Storage 2 | 1 . 1 Processor 1 | . 1 . Hackware . | . . . Protection 1 | . . 1 Artifact . | . . . Weapon 10 | 2 2 6 Energy Gun 1 | 1 . . Energy Cannon 1 | . . 1 Ballistic Gun 3 | 1 . 2 Ballistic Cannon . | . . . Launcher 4 | . 2 2 Special Weapon . | . . . Impact Weapon . | . . . Slashing Weapon . | . . . Piercing Weapon . | . . . Special Melee Weapon 1 | . . 1 Unidentified Prototypes . | . . . Parts Lost 9 | . . 9 Power . | . . . Propulsion 2 | . . 2 Utility 3 | . . 3 Weapon 4 | . . 4 Highest Loss Streak 7 | . . 7 To Critical Strikes . | . . . Average Slot Usage (%) 92 | . 100 86 Engine 4 | . 11 . Core 5 | . 2 7 Treads 21 | . 28 17 Device 14 | . 11 16 Storage 12 | . 14 10 Processor 7 | . 2 11 Protection 2 | . . 3 Energy Gun 9 | . 14 5 Energy Cannon 1 | . . 1 Ballistic Gun 9 | . 9 9 Launcher 2 | . 4 . Peak Build Rating 12 | 9 11 12 Average Rating 9 | 6 9 9 On Entrance 6 | . 9 9 Naked Turns . | . . . Heaviest Build 19 | 15 16 19 Greatest Support 40 | 40 40 40 Greatest Overweight (x) 3 | . . 3 Average Overweight (x) . | . . . Largest Inventory Capacity 8 | 8 8 8 Average Capacity 7 | 7 8 7 Most Carried 8 | 5 8 8 Average Carried 5 | 1 5 6 Final Capacity 8 | 8 8 5 Final Carried 8 | 1 8 3 Class Distribution -------------------- 77% | Mutant 16% | Skirmisher 6% | Assassin Dominant Class ---------------- Mutant | -10/Materials Mutant | -9/Materials Resources | -11 -10 -9 ----------- Run | Yrd Mat Mat Matter Collected 563 | 276 78 209 Remotely . | . . . Salvage Created 539 | 97 174 268 Parts 39 | 6 15 18 Haulers Intercepted . | . . . Recyclers Shooed 2 | . 1 1 Parts Field Recycled . | . . . Retrieved Matter . | . . . Parts Self-Destructed . | . . . Prevented . | . . . Kills | -11 -10 -9 ------- Run | Yrd Mat Mat Combat Hostiles Destroyed 13 | . 6 7 Guns 3 | . 1 2 Cannons 1 | . . 1 AOE 9 | . 5 4 Classes Destroyed 8 | 2 4 2 Builder 1 | . . 1 Tunneler 1 | 1 . . Recycler 1 | 1 . . Operator 1 | . 1 . Watcher 1 | . 1 . Swarmer 3 | . 3 . Grunt 8 | . 3 5 Duelist 2 | . . 2 Best Kill Streak 5 | 2 5 3 Combat Bots Only 5 | . 5 3 Max Kills in Single Turn 3 | 1 3 2 Gunslinging . | . . . Exploded 3 | . 3 2 Melee . | . . . Uniques/NPCs Destroyed . | . . . Combat | -11 -10 -9 -------- Run | Yrd Mat Mat Hostile Shots Fired 119 | . 16 103 Missed 32 | . 8 24 Damage Taken 1403 | . 190 1213 Core 421 | . 13 408 Absorbed by Shields . | . . . Core Remaining (%) 97 | 100 94 . Volleys Fired 39 | 3 8 28 Largest 2 | 2 2 2 Hottest 83 | 60 70 83 Shots Fired 63 | 6 16 41 Gun 53 | 6 13 34 Cannon 3 | . . 3 Launcher 7 | . 3 4 Special . | . . . Kinetic 33 | 3 5 25 Thermal 3 | . . 3 Explosive 7 | . 3 4 Electromagnetic 20 | 3 8 9 Robot Hit Streak 22 | 4 5 22 Robot Miss Streak 4 | 1 1 4 Penetration Max . | . . . Secondary Targets . | . . . Shots Hit Robots 44 | 4 11 29 Core Hits 35 | 2 15 18 Critical Kills . | . . . Critical Parts Destroyed . | . . . Critical Strikes . | . . . Melee Attacks . | . . . Impact . | . . . Slashing . | . . . Piercing . | . . . Sneak Attacks . | . . . Combat Hostiles . | . . . Follow-up Attacks . | . . . Damage Inflicted 1285 | 52 492 741 Guns 552 | 52 131 369 Cannons 52 | . . 52 Explosions 644 | . 361 283 Melee . | . . . Ramming 37 | . . 37 Kinetic 380 | 15 45 320 Thermal 162 | . 20 142 Explosive 534 | . 341 193 Electromagnetic 172 | 37 86 49 Impact . | . . . Slashing . | . . . Piercing . | . . . Highest Corruption 1 | . . 1 Average Corruption 1 | . . 1 Corruption Purged . | . . . Corruption Blocked . | . . . Overload Shots . | . . . Overflow Damage 4 | . . 4 Projectiles . | . . . Explosions 4 | . . 4 Melee . | . . . Knockbacks . | . . . Impact . | . . . Kinetic . | . . . Secondary . | . . . Self-Inflicted Damage 212 | . 103 109 Shots 6 | . 3 3 Rammed 20 | . . 20 Targets Rammed 20 | . . 20 Kicked . | . . . Crushed . | . . . Highest Temperature 48 | . 48 48 Average Temperature 17 | . 20 16 Received Heat Transfer 444 | . 36 408 Siege Activations . | . . . Robots Corrupted . | . . . Combat Hostiles . | . . . Parts Fried . | . . . Impact Corruptions . | . . . Robots Melted . | . . . Combat Hostiles . | . . . Parts Melted 1 | . . 1 Heat Transferred 311 | . 50 261 Parts Sabotaged . | . . . Parts Stolen . | . . . Parts Stripped . | . . . Power Chain Reactions 2 | . 1 1 Alert | -11 -10 -9 ------- Run | Yrd Mat Mat Peak Influence 253 | 10 253 236 Initial 106 | . 6 106 Average 128 | 3 119 163 Maximum Alert Level 1 | . 1 1 Low Security (%) 78 | 100 70 79 Level 1 21 | . 29 20 Level 2 . | . . . Level 3 . | . . . Level 4 . | . . . Level 5 . | . . . High Security . | . . . Max Security . | . . . Squads Dispatched 4 | . 1 3 Investigation 2 | . . 2 Extermination . | . . . Reinforcement 2 | . 1 1 Assault . | . . . Garrison . | . . . Intercept . | . . . Searches Triggered . | . . . Construction Impeded . | . . . Haulers Reinforced . | . . . Active Scanning Responses . | . . . Cargo Convoy Interrupts . | . . . Stealth | -11 -10 -9 --------- Run | Yrd Mat Mat Distress Signals . | . . . Communications Jammed . | . . . Distress Signals . | . . . Times Spotted 27 | . 12 15 Peak Tracking Total 5 | . 5 5 Tactical Retreats . | . . . Traps | -11 -10 -9 ------- Run | Yrd Mat Mat Traps Triggered 1 | . . 1 Indirectly . | . . . Trap Hack Attempts . | . . . Triggered . | . . . Disarmed . | . . . Reprogrammed . | . . . Reused . | . . . Traps Extracted . | . . . Installed . | . . . Triggered . | . . . Machines | -11 -10 -9 ---------- Run | Yrd Mat Mat Machines Disabled 1 | . 1 . Max in Single Turn 1 | . 1 . Machines Repaired . | . . . Machines Dismantled . | . . . Machines Sabotaged . | . . . Overloaded Fab Kills . | . . . Hacking | -11 -10 -9 --------- Run | Yrd Mat Mat Machines Accessed 5 | . 3 2 Terminals 4 | . 2 2 Fabricators . | . . . Repair Stations . | . . . Recycling Units 1 | . 1 . Scanalyzers . | . . . Garrison Access . | . . . Total Hacks 16 | . 8 8 Successful 9 | . 5 4 Failed 7 | . 3 4 Catastrophic 1 | . . 1 Database Lockouts . | . . . Manual . | . . . Terminals 12 | . 4 8 Fabricators . | . . . Repair Stations . | . . . Recycling Units 4 | . 4 . Scanalyzers . | . . . Garrison Access . | . . . Terminal Hacks 7 | . 3 4 Level Access Points 1 | . . 1 Emergency Access Points 1 | . . 1 Reinforcement Status 1 | . 1 . Recall Reinforcements 1 | . . 1 Zone Layout 3 | . 2 1 Fabricator Hacks . | . . . Repair Station Hacks . | . . . Recycling Unit Hacks 2 | . 2 . Retrieve Matter 1 | . 1 . Retrieve Components 1 | . 1 . Scanalyzer . | . . . Garrison Access Hacks . | . . . Unauthorized Hacks . | . . . Terminals . | . . . Fabricators . | . . . Repair Stations . | . . . Recycling Units . | . . . Scanalyzers . | . . . Garrison Access . | . . . Data Cores Recovered . | . . . Used . | . . . Hacking Detections 3 | . 1 2 Full Trace Events 2 | . 1 1 Feedback Events . | . . . Feedback Blocked . | . . . Robot Schematics Acquired . | . . . Robots Built . | . . . Authchips . | . . . Time . | . . . Total Robot Build Rating . | . . . Part Schematics Acquired . | . . . Parts Built . | . . . Authchips . | . . . Time . | . . . Total Part Build Rating . | . . . Parts Repaired . | . . . Time . | . . . Parts Recycled . | . . . Recycled Matter . | . . . Retrieved Matter . | . . . Retrieved Components 3 | . 3 . Parts Scanalyzed . | . . . Part Schematics Acquired . | . . . Parts Damaged . | . . . Bothacking | -11 -10 -9 ------------ Run | Yrd Mat Mat Used RIF Installer . | . . . Robots Hacked . | . . . Non-combat . | . . . Combat . | . . . Robot Hacks Applied . | . . . Relay Couplers Released . | . . . Fabnet Peak Effective % . | . . . Robots Rewired . | . . . Allies Hacked . | . . . Hacks Repelled . | . . . Allies | -11 -10 -9 -------- Run | Yrd Mat Mat Total Allies . | . . . Largest Group . | . . . Highest-Rated Group . | . . . Highest-Rated Ally . | . . . Total Orders . | . . . Ally Attacks . | . . . Total Damage . | . . . Kills . | . . . Allies Corrupted . | . . . Allies Melted . | . . . Intel | -11 -10 -9 ------- Run | Yrd Mat Mat Robot Analysis Total . | . . . Derelict Logs Recovered . | . . . Drone Launches . | . . . Drone Recoveries . | . . . Exploration | -11 -10 -9 ------------- Run | Yrd Mat Mat Turns Passed 936 | 111 341 484 Spaces Moved 467 | 66 187 214 Core 31 | 15 . 16 Treads 436 | 51 187 198 Legs . | . . . Wheels . | . . . Hover . | . . . Flight . | . . . Fastest Speed 50 | 50 160 50 Average Speed 154 | 135 160 155 Slowest Speed 200 | 160 160 200 Overloaded Moves . | . . . Propulsion Burnouts . | . . . Robots Hopped . | . . . Cave-ins Triggered . | . . . Exploration Rate (%) 18 | 5 33 16 Regions Visited 2 Branch Regions . Pre-discovered Areas . | . . . Known Exits Taken 1 | . 1 . Unknown Exits Taken 1 | 1 . . Scrap Searched . | . . . Spaces Dug . | . . . Terrain Destroyed 44 | . 18 26 Melee . | . . . Projectile . | . . . AOE 44 | . 18 26 Terrain Rammed . | . . . Walls Destroyed . | . . . Machines Disabled . | . . . Actions | -11 -10 -9 --------- Run | Yrd Mat Mat Total 615 | 82 214 319 Wait 42 | . 1 41 Move 465 | 65 186 214 Hop . | . . . Pick Up 18 | 7 9 2 Fast Attach 5 | 1 2 2 Attach 15 | 6 1 8 Detach 1 | . . 1 Swap 3 | . 2 1 Drop 7 | . 5 2 Fire 39 | 3 8 28 Melee . | . . . Ram 15 | . . 15 Kick . | . . . Crush 5 | . . 5 Escape Stasis . | . . . Rewire . | . . . Trap . | . . . Miscellaneous . | . . . Route ------- -11/Scrapyard -10/Materials -9/Materials (discovered 3 exits: Mat x3) History --------- Turn | Location | Event 11 | -11/Scrapyard | Discovered new exit (range 15) 112 | -11/Scrapyard | Entered Materials 303 | -10/Materials | Build established: Mutant 357 | -10/Materials | Discovered new exit (range 10) 404 | -10/Materials | Identified exit to Materials 453 | -10/Materials | Entered another Materials area 453 | -9/Materials | Evolved 2 slots: Utility x2 633 | -9/Materials | Identified exit to Materials 909 | -9/Materials | Core integrity fell below 50% 931 | -9/Materials | Core integrity fell below 20% 937 | -9/Materials | Destroyed by G-34 Mercenary with Small Laser Last Messages --------------- 00893_ Grenade Launcher destroyed. 00895_ Acquired 109 matter. 00898_ K-01 Serf collects debris. 00898_ R-06 Scavenger collects Imp. Aluminum Leg. 00901_ K-01 Serf collects debris. 00902_ R-06 Scavenger collects Ion Engine. 00904_ Slammed into G-34 Mercenary. 00904_ Signal Interpreter broken. 00904_ Destabilizing: Short circuit. 00904_ Sml. Storage Unit destroyed. 00905_ Slammed into G-34 Mercenary. 00907_ Destabilizing: System corrupted (+1). 00908_ Slammed into G-34 Mercenary. 00916_ Acquired 8 matter. 00917_ Acquired 4 matter. 00918_ Slammed into G-34 Mercenary. 00921_ Structural Scanner destroyed. 00921_ Slammed into G-34 Mercenary. 00926_ Lgt. Treads destroyed. 00928_ Slammed into G-34 Mercenary. Map ----- +----------------------------------------------------+ | | | | | ??????????????????????????????????###############? | | ??????????????????????????????????## "T" ##? | | ??????????????????????????????????## """ ### | | ??????????????????????????????????## """"" ### | | ?????????????????????###########??## """"" ### | | ?????????????????????############### """"" ### | | ?????????????????????## ## ##### """ ### | | ?????????????????????## # ### | | ?????????????????????## #######+####### | | ?????????????????????## # # ###### | | ?????????????????????## # | | ?????????????#######?## # / #### # | | ????????????########### # # ####=# | | ????????????# % # # % # #### # | | ????????????# # # *% ### ####+# | | ????????????# # # * ### ## | | ????????????# + #### # ## # | | ????????????# """ ""# T # | | ????????????? """ T"# "" + """ | | ??????????????""" ""# # """ | | ?????????????? [ # #####+######## # """ | | ??????????????######?## # ############# """ | | ????????############### g# ##???######## | | ???????################a @/w ##?????????###### | | ??????### !% =%% # ##?????????###### | | ??? %gk g %# ##??????????????? | | ???????## k %%%% g% # ##??????????????? | | ???????#####+### ################??????????????? | | ??????? # ################??????????????? | | ?????????????? # #?????????????????????????????? | | ?????????????? # #?????????????????????????????? | | ?????????????? # #?????????????????????????????? | | ???????????????# #?????????????????????????????? | | ???????????????# #?????????????????????????????? | | ???????????????# #?????????????????????????????? | | ???????????????# ??????????????????????????????? | | ???????????????# ??????????????????????????????? | | ???????????????# ??????????????????????????????? | | ??????????????? ??????????????????????????????? | | ??????????????? ??????????????????????????????? | | ??????????????? ??????????????????????????????? | | ???????????????? ##??????????????????????????????? | | ?????????????????????????????????????????????????? | | ?????????????????????????????????????????????????? | | ?????????????????????????????????????????????????? | | ?????????????????????????????????????????????????? | | ?????????????????????????????????????????????????? | | ?????????????????????????????????????????????????? | +----------------------------------------------------+ Best States ------------- Heat Dissipation 28 Energy Generation 14 Energy Capacity 350 Matter Stores 300 Matter Capacity 300 Sight Range 16 Robot Scan Range 14 Terrain Scan Range 16 Terrain Scan Density 10 Armor Coverage 150 Evasion (%) 50 Recoil Reduction 2 Item Schematics ----------------- None Robot Schematics ------------------ None Fabricated ------------ Nothing Alien Tech Used ----------------- None Achievements -------------- GoHome() Challenges ------------ None Game ------ Seed LayeredCommKit Manual? 0 Play Time 00:16:16 Cumulative 11.2 hours Start 2024.10.20 @ 14:50:08 End 2024.10.20 @ 15:27:09 Sessions 1 Manual Loads 0 Difficulty Rogue Special Mode None Game No. 19 Rogue 19 Adventurer 0 Explorer 0 Win Type - Total 0 Types 0/0/0/0/0/0/0/0/0 Lore% 10 Gallery% 22 Achievement% 18 Wizard Run 0 Options --------- Layout 0 ASCII 0 Keyboard 0 Movement Mouse Keybinds 0 Fullscreen 1 Font 36/Smallcaps Map View 38x25 Zoom Use 100% Tactical HUD 1 Map Filters NONE Filters NONE Steam 1 RUN: a67068bf-c4c5-4519-830e-db7394f76f35